bitfinex/quotes_ETHUSD_20250505
["timestamp","ask_amount","ask_price","bid_price","bid_amount"]
[1746453799968,6.0706195,1817.6,1817.0,0.8311]
[1746453800263,6.0706195,1817.6,1817.2,5.5028521]
[1746453800264,0.51370932,1817.5,1817.2,5.5028521]
[1746453800463,0.05497267,1817.4,1817.2,5.5028521]
[1746453800897,0.51370932,1817.3,1817.1,5.50305944]
[1746453801084,0.51370932,1817.2,1817.1,5.50305944]
[1746453801292,0.51370932,1817.2,1816.7,0.7887]
[1746453801463,0.51370932,1817.2,1816.3,5.753]
[1746453801464,6.3959682,1816.9,1816.6,5.50470012]
[1746453801667,6.45094087,1816.9,1816.7,5.50447948]
[1746453801859,6.3959682,1816.9,1816.8,5.50418317]
[1746453802097,0.05497267,1817.0,1816.8,11.00836634]
[1746453802272,0.51357377,1816.9,1816.7,5.50438414]
[1746453802594,0.51357377,1816.9,1816.8,5.55922626]
[1746453802800,6.3959682,1817.2,1816.9,5.50362356]
[1746453803015,6.3959682,1817.2,1817.0,5.50350719]
[1746453803293,6.3959682,1817.2,1817.1,5.50327444]
[1746453803503,0.51327942,1817.1,1817.0,5.50333753]
[1746453804569,0.51327942,1817.1,1817.0,5.50357732]
[1746453804898,0.51327942,1817.1,1816.9,5.50366364]
[1746453805065,0.56825209,1817.1,1816.8,5.50401252]
[1746453805266,0.51327942,1817.0,1816.8,5.50395624]
[1746453805505,0.51327942,1817.0,1816.9,5.50386808]
[1746453805882,0.51327942,1817.0,1816.9,6.6596826]
[1746453806200,0.51327942,1817.1,1817.0,5.50357732]
[1746453806771,0.51327942,1817.1,1817.0,6.38290833]
[1746453806974,0.51327942,1817.3,1817.1,5.50299605]
[1746453807175,5.80797267,1817.4,1817.0,6.32767225]
[1746453807176,0.51327942,1817.2,1817.0,6.32767225]
[1746453807392,0.4103522,1817.6,1816.7,5.50441826]
[1746453807393,0.5681,1818.6,1817.1,0.8055]
[1746453807597,0.5681,1818.6,1818.3,5.49941063]
[1746453807810,0.5681,1818.6,1818.2,5.49966014]
[1746453807970,0.5681,1818.6,1818.3,5.4995151]
[1746453808173,0.5681,1818.6,1818.5,5.49903766]
[1746453808373,0.5681,1818.9,1818.1,5.50021252]
[1746453808674,7.88755689,1818.9,1818.4,5.49924073]
[1746453808891,2.38965962,1818.9,1818.7,5.49824299]
[1746453809091,2.38965962,1818.9,1818.5,5.49884627]
[1746453809315,2.38965962,1818.9,1818.5,5.49876818]
[1746453809614,6.3959682,1818.7,1818.4,5.49918672]
[1746453809912,7.61096502,1818.7,1818.4,10.99839486]
[1746453810110,7.61096502,1818.7,1818.4,5.49917716]
[1746453810319,7.61096502,1818.7,1818.4,5.49928371]
[1746453810477,7.61096502,1818.7,1818.3,5.49938236]
[1746453810807,6.9640682,1818.4,1817.7,0.8325]
[1746453810985,6.3959682,1818.1,1817.8,5.50100887]
[1746453811168,0.5681,1818.0,1817.8,5.50109633]
[1746453811374,0.5681,1818.0,1817.9,5.50085263]
[1746453811572,12.1489682,1818.1,1817.9,5.50085263]
[1746453811797,12.1489682,1818.1,1817.9,11.00150618]
[1746453811992,12.1489682,1818.1,1817.9,5.50065355]
[1746453812196,13.42067502,1818.1,1817.5,0.8325]
[1746453812570,6.3959682,1817.8,1817.5,5.50178387]
[1746453812879,6.3959682,1817.8,1817.6,5.50163016]
[1746453813383,6.3959682,1817.8,1817.7,5.50145788]
[1746453813583,3.0,1818.0,1817.3,0.7664]
[1746453813800,10.39843888,1818.0,1817.8,5.50114157]
[1746453813983,10.39843888,1818.0,1817.7,5.50129272]
[1746453814521,10.39843888,1818.0,1817.6,5.50161588]
[1746453814712,10.39843888,1818.0,1817.6,5.50159263]
[1746453814907,6.3959682,1817.7,1817.4,5.50213638]
[1746453815229,5.753,1817.6,1817.4,5.50213638]
[1746453815392,5.753,1817.6,1817.3,5.50248529]
[1746453815591,6.3959682,1817.4,1817.0,0.8204]
[1746453815803,6.3959682,1817.4,1817.2,5.50290629]
[1746453815998,6.3959682,1817.4,1817.2,11.00566901]
[1746453816193,6.3959682,1817.4,1817.0,0.8204]
[1746453816194,6.3959682,1817.4,1817.3,5.50266879]
[1746453816823,4.60794389,1817.9,1817.3,1.10056224]
[1746453816986,8.753,1817.8,1817.6,5.50173653]
[1746453817191,5.753,1817.8,1817.2,5.50292783]
[1746453817518,5.753,1817.8,1817.6,5.50152478]
[1746453817715,11.25430221,1817.8,1817.4,5.50231378]
[1746453817919,6.3959682,1817.6,1817.4,5.50214886]
[1746453818529,6.3959682,1817.6,1817.4,5.50209974]
[1746453818719,6.3959682,1817.6,1817.3,5.50250299]
[1746453818902,6.3959682,1817.6,1817.1,0.05502578]
[1746453819107,6.3959682,1817.6,1817.3,5.50246168]
[1746453819433,7.03556502,1817.6,1817.0,6.32391439]
[1746453819734,0.51382705,1817.5,1817.3,5.50255627]
[1746453820029,0.51382705,1817.5,1817.2,5.50284608]
[1746453820235,6.3959682,1817.3,1817.0,5.50351606]
[1746453820390,6.39259682,1817.2,1816.8,5.50396864]
[1746453820591,6.9640682,1817.0,1816.7,5.50447659]
[1746453820825,6.9640682,1817.0,1816.8,5.50407288]
[1746453820826,0.51382705,1816.9,1816.8,5.50407288]
[1746453821902,0.51382705,1816.9,1816.8,5.50418317]
[1746453822319,0.51382705,1816.9,1816.7,5.50431312]
[1746453822499,0.51382705,1816.9,1816.7,5.5043641]
[1746453822835,0.51382705,1816.8,1816.7,5.5043641]
[1746453823327,0.51382705,1816.8,1816.6,5.50460749]
[1746453823527,0.51382705,1816.8,1816.7,5.50448615]
[1746453823690,1.08192705,1816.8,1816.5,5.50497725]
[1746453823895,6.3959682,1816.7,1816.4,5.50535905]
[1746453824204,0.51382705,1816.6,1816.5,5.50509221]
[1746453824601,0.51382705,1816.6,1816.3,5.50550657]
[1746453824818,6.26782705,1816.5,1816.4,5.50539528]
[1746453825337,0.5681,1816.4,1816.1,5.5060891]
[1746453825496,6.9640682,1816.4,1816.2,5.50600027]
[1746453825826,0.51382705,1816.3,1816.2,5.50600027]
[1746453827521,0.51382705,1816.3,1816.2,5.5610602]
[1746453827832,0.51382705,1816.3,1816.2,6.3249602]
[1746453828033,0.51382705,1816.3,1816.2,7.50807444]
[1746453828337,6.3959682,1816.9,1816.6,5.50449817]
[1746453828536,0.51215251,1816.8,1816.6,5.50449817]
[1746453828835,0.51215251,1816.8,1816.7,5.50448615]
[1746453831139,0.51215251,1816.8,1816.7,5.55952661]
[1746453831340,0.51215251,1816.8,1816.7,6.74876684]
[1746453831639,5.776,1817.1,1817.0,5.50339918]
[1746453831799,6.28785729,1817.1,1817.0,5.50339918]
[1746453832306,0.51185729,1817.1,1817.0,5.50339918]
[1746453832899,0.51185729,1817.1,1816.9,5.50364395]
[1746453833096,6.3441,1817.3,1817.1,5.50319739]
[1746453833294,6.3441,1817.3,1817.0,5.50331345]
[1746453833295,6.97851,1817.3,1817.0,5.50331345]
[1746453833530,6.97851,1817.3,1817.1,11.00620273]
[1746453833699,6.97851,1817.3,1817.1,5.50308675]
[1746453833700,0.51183163,1817.2,1817.1,5.50308675]
[1746453834305,0.51183163,1817.2,1817.0,5.50339012]
[1746453834518,6.90779983,1817.2,1817.0,5.50339012]
[1746453834700,6.3959682,1817.2,1816.9,5.50371689]
[1746453834900,6.3959682,1817.2,1817.0,5.50339514]
[1746453835167,6.3959682,1817.2,1817.1,5.50327444]
[1746453835635,6.90779306,1817.2,1817.1,5.50327444]
[1746453835838,6.90779306,1817.2,1817.0,5.50337041]
[1746453836333,0.51182486,1817.1,1817.0,5.50337041]
[1746453836537,0.51182486,1817.1,1816.9,5.5037167]
[1746453836957,0.51182486,1817.1,1816.6,5.5046607]
[1746453836958,0.5681,1817.0,1816.6,5.5046607]
[1746453837157,12.1709682,1816.9,1816.7,5.50446299]
[1746453837651,12.1709682,1816.9,1816.8,5.50418317]
[1746453837847,12.1709682,1816.9,1816.7,11.00872733]
[1746453838157,12.1709682,1816.9,1816.5,5.50491133]
[1746453838345,12.1709682,1816.9,1816.6,5.50464888]
[1746453838640,3.51252012,1816.8,1816.4,5.50520886]
[1746453838809,3.51252012,1816.8,1816.5,5.5049473]
[1746453839009,3.51252012,1816.8,1816.4,5.50520886]
[1746453839210,0.51252012,1816.7,1816.4,5.50520886]
[1746453839442,0.51252012,1816.7,1816.2,0.8331]
[1746453839643,6.01701619,1816.7,1816.4,5.50512958]
[1746453839941,6.01701619,1816.7,1816.1,5.50606445]
[1746453839942,6.073326,1816.5,1816.1,5.50606998]
[1746453840114,6.073326,1816.5,1816.3,5.50569839]
[1746453840115,5.775,1816.4,1816.3,5.50569839]
[1746453840456,6.28752012,1816.4,1816.3,5.50569839]
[1746453840814,6.28752012,1816.4,1816.2,5.50585631]
[1746453841131,5.775,1816.4,1816.3,5.50569839]
[1746453841534,6.3959682,1816.6,1816.5,5.50509221]
[1746453841847,5.776,1816.7,1816.6,5.50478916]
[1746453842049,5.505005,1816.6,1816.2,5.50580563]
[1746453842249,6.9640682,1816.6,1816.3,5.50546578]
[1746453842413,6.3959682,1816.6,1816.5,5.50509221]
[1746453842614,6.90972393,1816.6,1816.5,5.50509221]
[1746453842851,6.90972393,1816.6,1816.4,5.5052734]
[1746453843056,6.90972393,1816.6,1816.4,5.50520543]
[1746453843247,5.776,1816.7,1816.2,5.50600154]
[1746453843449,5.776,1816.7,1816.5,5.5048921]
[1746453843657,6.9640682,1816.9,1816.5,5.5048921]
[1746453843658,6.9640682,1816.9,1816.7,5.50426973]
[1746453843958,3.0,1816.6,1816.3,5.50558187]
[1746453844135,3.0,1816.6,1816.4,5.5051967]
[1746453844332,8.50479101,1816.6,1816.3,5.50556244]
[1746453844521,6.01924878,1816.5,1816.1,5.50615842]
[1746453844721,0.5681,1816.4,1816.0,5.50642786]
[1746453844918,0.51398608,1816.3,1816.0,5.50639713]
[1746453845134,6.3959682,1816.2,1815.8,6.28155561]
[1746453845334,0.51398608,1816.1,1815.9,5.50675459]
[1746453845658,0.51398608,1816.1,1815.8,11.01406093]
[1746453845959,0.51398608,1816.1,1815.7,5.50738545]
[1746453845960,6.0202915,1816.1,1815.7,5.50738545]
[1746453846122,0.5681,1815.9,1815.5,5.50796434]
[1746453846452,6.3959682,1815.9,1815.6,5.50761439]
[1746453846656,0.51398608,1815.8,1815.5,5.50796971]
[1746453846958,0.51398608,1815.7,1815.5,5.50793499]
[1746453847156,6.3959682,1815.9,1815.6,5.5078211]
[1746453847359,6.3959682,1815.9,1815.5,5.50807217]
[1746453847523,12.81256502,1815.9,1815.5,5.50807217]
[1746453847726,5.50724814,1815.8,1815.4,5.50834903]
[1746453848055,6.02154321,1815.8,1815.4,5.50828775]
[1746453848263,0.51424802,1815.7,1815.3,6.28297533]
[1746453848429,0.51424802,1815.7,1815.5,5.50801766]
[1746453848635,0.51424802,1815.6,1815.4,5.50823032]
[1746453848822,0.51424802,1815.6,1815.4,5.5082378]
[1746453849019,0.51424802,1815.5,1815.4,5.5082378]
[1746453851842,0.51424802,1815.5,1815.3,5.5087098]
[1746453852035,0.51424802,1815.4,1815.2,5.50889228]
[1746453852375,9.3959682,1815.6,1815.4,5.50832548]
[1746453852583,9.3959682,1815.6,1815.5,5.50812448]
[1746453852761,9.3959682,1815.6,1815.1,0.8098]
[1746453852945,6.29130958,1815.5,1815.3,5.50858081]
[1746453853132,6.85940958,1815.5,1815.2,5.50884197]
[1746453853334,6.3959682,1815.3,1815.0,5.50942518]
[1746453853648,6.3959682,1815.3,1815.1,5.50915973]
[1746453853855,0.51330958,1815.2,1815.1,5.50915973]
[1746453854560,0.51330958,1815.2,1814.5,5.51105075]
[1746453854561,9.07758911,1815.1,1814.6,5.51064467]
[1746453854770,6.3959682,1814.7,1814.5,5.51103095]
[1746453854965,3.0,1814.6,1814.1,6.68539924]
[1746453855184,0.51330958,1814.5,1814.1,1.1732468]
[1746453855355,0.51330958,1814.5,1814.1,6.6854663]
[1746453855567,14.28905183,1814.6,1814.3,5.51157497]
[1746453855568,0.51330958,1814.4,1814.3,5.51157497]
[1746453855873,5.778,1814.7,1814.5,5.51092801]
[1746453856162,8.78,1814.7,1814.1,6.96144884]
[1746453856336,15.1759682,1814.7,1814.5,5.51093594]
[1746453856536,0.51170195,1814.6,1814.5,5.51093594]
[1746453856730,0.51170195,1814.6,1814.5,6.69326394]
[1746453856943,0.51170195,1814.6,1814.1,6.96144884]
[1746453856944,3.0,1814.9,1814.2,5.51202334]
[1746453857171,8.51009125,1814.9,1814.5,5.51096568]
[1746453857464,0.51119225,1814.8,1814.2,5.51203688]
[1746453857690,0.51119225,1814.8,1814.7,5.5105527]
[1746453857967,0.51119225,1814.7,1814.6,5.51078619]
[1746453858262,0.51119225,1814.7,1814.5,5.51091714]
[1746453858467,0.51119225,1814.7,1814.6,5.51085638]
[1746453858665,3.0,1814.9,1814.6,5.51077918]
[1746453859053,0.51084574,1814.8,1814.5,5.51092823]
[1746453859253,0.51084574,1814.7,1814.5,11.02189221]
[1746453859454,0.51084574,1814.7,1814.6,5.51085638]
[1746453859886,0.51084574,1814.7,1814.6,6.28655638]
[1746453860085,12.5840682,1815.0,1814.6,6.28628495]
[1746453860289,18.09472085,1815.0,1814.6,5.51067447]
[1746453860583,18.09472085,1815.0,1814.4,5.51131789]
[1746453860584,6.02041274,1814.9,1814.4,5.51131789]
[1746453860783,5.51027494,1814.8,1814.4,5.5112567]
[1746453861095,0.51044192,1814.7,1814.5,5.51114219]
[1746453861454,0.51044192,1814.8,1814.5,5.51114219]
[1746453861687,0.51044192,1814.7,1814.5,5.51114219]
[1746453862378,3.0,1814.8,1814.5,5.51114219]
[1746453862588,6.3959682,1814.7,1814.4,5.51132619]
[1746453862786,3.0,1814.6,1814.3,5.51165735]
[1746453863092,3.0,1814.6,1814.3,5.51150407]
[1746453863093,0.51046044,1814.5,1814.3,5.51150407]
[1746453863252,0.51046044,1814.5,1814.4,5.51146384]
[1746453863765,0.51046044,1814.5,1814.3,5.51150407]
[1746453863962,3.5681,1814.6,1814.3,5.51150407]
[1746453864182,3.0,1814.6,1814.5,5.51116009]
[1746453864676,3.51062036,1814.6,1814.5,5.51116009]
[1746453865057,3.0,1814.6,1814.5,5.51116009]
[1746453866084,3.51091024,1814.6,1814.5,5.51116009]
[1746453866467,3.51091024,1814.6,1814.3,5.51173919]
[1746453866668,10.01260288,1814.6,1814.1,0.4141468]
[1746453866871,3.0,1814.3,1814.1,5.92633348]
[1746453867194,0.51091024,1814.2,1814.1,0.4141468]
[1746453868309,0.51091024,1814.2,1814.1,5.92652208]
[1746453868810,3.51091024,1814.2,1814.1,0.4141468]
[1746453868974,3.51091024,1814.2,1814.1,5.92652208]
[1746453869306,0.51091024,1814.2,1814.1,5.92652208]
[1746453869506,6.06076273,1814.7,1814.1,5.92652208]
[1746453869507,5.622,1814.4,1814.3,5.51176762]
[1746453869708,5.622,1814.6,1814.5,5.51090886]
[1746453870172,6.13369335,1814.6,1814.5,5.51090886]
[1746453870371,9.13369335,1814.6,1814.5,5.51090886]
[1746453870576,6.13369335,1814.6,1814.5,5.51090886]
[1746453870791,9.13369335,1814.6,1814.5,5.51090886]
[1746453871475,3.51169335,1814.6,1814.5,5.51090886]
[1746453872213,3.51169335,1814.6,1814.4,6.30496723]
[1746453872383,3.51169335,1814.6,1814.1,1.55805391]
[1746453872384,10.25883089,1814.6,1814.3,5.51160542]
[1746453872584,0.51169335,1814.5,1814.2,5.51188034]
[1746453872783,0.51169335,1814.4,1814.2,5.51180428]
[1746453872981,3.0,1814.2,1814.1,0.4141468]
[1746453873185,3.51169335,1814.2,1814.1,0.4141468]
[1746453873679,3.51169335,1814.2,1814.1,5.92652208]
[1746453874004,3.51169335,1814.2,1814.1,0.4141468]
[1746453874306,5.06475951,1814.2,1814.1,0.4141468]
[1746453874676,5.63285951,1814.2,1814.1,0.4141468]
[1746453875007,5.63285951,1814.2,1814.1,5.92652208]
[1746453875312,5.63285951,1814.2,1814.1,0.4141468]
[1746453876674,11.14493094,1814.2,1814.1,0.4141468]
[1746453877012,5.63285951,1814.2,1814.1,0.4141468]
[1746453877314,11.14493094,1814.2,1814.1,0.4141468]
[1746453877499,11.69493094,1814.2,1814.1,0.4141468]
[1746453879110,6.18285951,1814.2,1814.1,0.4141468]
[1746453879287,11.69493094,1814.2,1814.1,0.4141468]
[1746453879806,17.6240484,1814.2,1814.1,0.4141468]
[1746453880514,5.51399664,1813.6,1813.0,6.26770545]
[1746453880815,15.61621047,1813.5,1813.0,6.26780516]
[1746453881181,15.61621047,1813.5,1813.0,0.7521]
[1746453881182,5.92911746,1813.3,1813.0,0.7521]
[1746453881405,0.51169335,1813.2,1813.0,0.7521]
[1746453881577,0.51169335,1813.2,1812.8,6.31464315]
[1746453881784,0.51169335,1813.1,1812.8,0.7985]
[1746453882313,5.51491773,1813.3,1812.8,0.7985]
[1746453882314,0.51169335,1813.0,1812.9,5.51597427]
[1746453882512,0.51169335,1813.0,1812.8,6.31466092]
[1746453883014,0.51169335,1813.0,1812.8,0.7985]
[1746453883215,0.51169335,1812.9,1812.4,0.7977]
[1746453883416,0.51169335,1812.8,1812.7,5.5164495]
[1746453884411,0.51169335,1812.9,1812.6,11.03351551]
[1746453884615,0.51169335,1812.9,1812.5,5.51713361]
[1746453885110,6.02824626,1812.8,1812.4,0.7977]
[1746453885412,9.02842574,1812.7,1812.4,0.7977]
[1746453885578,0.51169335,1812.6,1812.4,6.31505639]
[1746453885778,0.51169335,1812.6,1812.4,6.31512992]
[1746453886214,0.51169335,1812.5,1812.4,0.7977]
[1746453886407,0.51169335,1812.5,1812.4,6.31524579]
[1746453886590,0.51169335,1812.6,1812.5,5.51724137]
[1746453886926,0.51169335,1812.8,1812.6,5.51690794]
[1746453887097,0.51169335,1812.8,1812.6,5.51675878]
[1746453887297,0.51169335,1812.8,1812.6,0.05516341]
[1746453887499,0.51169335,1812.8,1812.4,6.31503408]
[1746453887692,0.51169335,1812.7,1812.4,6.31508577]
[1746453888020,0.51169335,1812.7,1812.5,5.51708383]
[1746453888208,0.51169335,1812.8,1812.4,6.37018404]
[1746453888408,0.51169335,1812.8,1812.4,0.85286982]
[1746453888409,6.9308092,1812.8,1812.4,0.85286982]
[1746453888612,3.51169335,1812.7,1812.4,0.7977]
[1746453888923,3.51169335,1812.7,1812.3,0.4141468]
[1746453889135,6.02878705,1812.6,1812.3,0.4141468]
[1746453889444,0.51169335,1812.5,1812.3,0.4141468]
[1746453889838,6.02896322,1812.5,1812.3,0.4141468]
[1746453890136,3.51169335,1812.4,1812.3,0.4141468]
[1746453890310,10.14733914,1812.4,1812.3,0.4141468]
[1746453893202,10.14733914,1812.4,1812.3,0.17208243]
[1746453893417,12.26111658,1812.4,1812.3,0.17208243]
[1746453894021,18.14384157,1812.4,1812.3,0.17208243]
[1746453896839,18.85154397,1812.4,1812.3,0.17208243]
[1746453898351,18.14384157,1812.4,1812.3,0.17208243]
[1746453898711,5.51954224,1811.8,1811.4,0.7875]
[1746453898915,5.476,1811.9,1811.5,5.52020033]
[1746453899141,10.99522528,1811.9,1811.4,6.30796554]
[1746453899335,5.476,1811.9,1811.4,0.7875]
[1746453899546,10.99519368,1811.9,1811.4,0.7875]
[1746453899717,0.51066865,1811.8,1811.4,6.30804319]
[1746453899918,9.03018334,1811.8,1811.4,0.7875]
[1746453900142,0.51066865,1811.7,1811.4,6.30806617]
[1746453900346,0.51066865,1811.7,1811.4,6.30803729]
[1746453900653,0.51066865,1811.7,1811.5,5.52007729]
[1746453900940,0.51066865,1811.7,1811.4,11.82832236]
[1746453901141,0.51066865,1811.7,1811.4,0.7875]
[1746453901446,0.51066865,1811.7,1811.4,6.30796707]
[1746453901633,0.51066865,1811.7,1811.4,0.7875]
[1746453901841,0.51066865,1811.7,1811.4,6.30793677]
[1746453902147,0.51066865,1811.7,1811.4,0.7875]
[1746453902366,6.80308129,1811.7,1811.4,0.7875]
[1746453902552,5.52009204,1811.6,1811.4,0.7875]
[1746453902715,0.55,1811.3,1810.3,4.42100789]
[1746453903047,5.52290437,1810.7,1810.3,4.42100789]
[1746453903446,3.51066865,1810.6,1810.5,0.3641468]
[1746453903758,14.97504545,1810.6,1810.5,0.3641468]
[1746453904254,15.52504545,1810.6,1810.5,0.3641468]
[1746453904829,14.97504545,1810.6,1810.5,0.3641468]
[1746453905443,3.51066865,1810.6,1810.5,0.3641468]
[1746453906516,9.03369968,1810.6,1810.5,0.3641468]
[1746453906716,0.51066865,1810.6,1810.5,0.3641468]
[1746453906924,0.51066865,1810.6,1810.5,1.1338468]
[1746453907132,0.51066865,1810.6,1810.5,0.3641468]
[1746453907351,10.7347499,1810.6,1810.5,0.3641468]
[1746453908259,10.7347499,1810.6,1809.7,0.7697]
[1746453908260,5.52471263,1810.1,1809.7,0.7697]
[1746453908850,3.0,1809.8,1809.4,6.35567419]
[1746453909161,3.0,1809.9,1809.5,5.52620293]
[1746453909324,3.0,1809.9,1809.4,6.35552467]
[1746453909522,4.49703277,1809.9,1809.4,6.4107853]
[1746453909748,4.49703277,1809.9,1809.5,5.52626225]
[1746453910152,0.5105722,1809.8,1809.4,0.829]
[1746453910323,6.03616219,1809.8,1809.4,0.829]
[1746453910520,0.5105722,1809.7,1809.4,0.829]
[1746453910766,0.5105722,1809.7,1809.6,5.52608311]
[1746453910946,5.48,1810.3,1810.0,6.30965565]
[1746453911258,0.51017834,1810.2,1810.0,0.785]
[1746453911421,4.66159657,1810.2,1809.8,5.52543591]
[1746453911621,0.51017834,1810.1,1809.7,6.34502314]
[1746453911869,0.51017834,1810.1,1809.8,5.52543618]
[1746453912160,0.51017834,1810.1,1809.8,0.05524987]
[1746453912453,1.71915022,1810.6,1810.0,5.52463619]
[1746453912454,7.24236886,1810.6,1810.0,5.52463619]
[1746453912640,6.0906246,1810.8,1810.3,5.52383517]
[1746453912973,5.481,1810.9,1810.5,5.52318041]
[1746453913135,3.0,1810.8,1810.5,5.52318041]
[1746453913325,3.51022908,1810.8,1810.5,5.52318041]
[1746453913677,24.70934115,1811.2,1810.5,5.52318041]
[1746453913678,5.87098793,1811.7,1810.8,5.52242102]
[1746453913827,5.52035772,1811.5,1811.0,5.52154657]
[1746453914030,3.51023389,1811.4,1811.0,5.52154657]
[1746453914340,3.51023389,1811.4,1811.0,5.52180948]
[1746453914341,0.51023389,1811.4,1811.0,5.52180948]
[1746453914537,9.03102076,1811.4,1810.9,0.5522421]
[1746453914743,5.52165293,1811.1,1810.7,0.7614]
[1746453915070,8.52139976,1811.2,1810.7,0.7614]
[1746453915296,3.0,1811.1,1810.7,6.28411685]
[1746453915477,0.51023389,1811.1,1810.8,0.05522382]
[1746453915828,0.51023389,1811.1,1811.0,5.52181115]
[1746453916061,0.51023389,1811.5,1811.1,5.52134822]
[1746453916240,0.51023389,1811.5,1810.9,5.52189013]
[1746453916443,5.52102144,1811.3,1810.8,5.52223605]
[1746453916780,0.51023389,1811.2,1811.0,5.5217746]
[1746453916927,0.51023389,1811.2,1810.9,5.52210828]
[1746453917275,0.51023389,1811.3,1810.9,5.57722236]
[1746453917435,6.03131757,1811.3,1810.8,6.69875929]
[1746453917629,0.51023389,1811.2,1810.7,6.2424]
[1746453917839,3.0,1811.0,1810.7,0.7614]
[1746453918045,8.52154639,1811.1,1810.7,0.7614]
[1746453918263,6.03161295,1811.2,1810.7,0.7614]
[1746453918474,0.51023389,1811.0,1810.7,0.7614]
[1746453919137,3.0,1810.9,1810.7,0.7614]
[1746453919460,9.03237174,1810.9,1810.7,0.7614]
[1746453919767,9.03237174,1810.9,1810.4,5.52343665]
[1746453919768,8.52283654,1810.7,1810.4,0.8062]
[1746453920070,3.0,1810.7,1810.3,5.57907629]
[1746453920278,6.03285545,1810.8,1810.3,5.57907629]
[1746453920279,0.51023389,1810.8,1810.4,5.52353269]
[1746453920573,0.51023389,1810.7,1810.6,5.52303103]
[1746453920757,0.51023389,1810.7,1810.5,6.30344485]
[1746453920958,6.03309581,1810.7,1810.3,0.7803]
[1746453921161,0.51023389,1810.6,1810.3,0.7803]
[1746453921367,0.51023389,1810.6,1810.3,6.30413703]
[1746453921550,0.51023389,1810.5,1810.4,5.52364118]
[1746453921763,0.51023389,1810.5,1810.3,6.30404239]
[1746453921962,0.51023389,1810.7,1810.3,6.30404239]
[1746453922140,5.52314501,1810.6,1810.3,0.7803]
[1746453922337,0.51023389,1810.5,1810.2,5.556]
[1746453922590,8.30497542,1810.7,1810.2,11.08007712]
[1746453922763,9.68773046,1810.7,1810.2,5.556]
[1746453923010,6.90549079,1810.7,1810.2,5.52411054]
[1746453923210,6.44534115,1811.0,1810.1,0.81983771]
[1746453923414,5.52286033,1810.7,1810.2,5.52425146]
[1746453923939,5.52288947,1810.7,1810.2,5.52404711]
[1746453924234,6.99534115,1810.8,1810.2,0.05523476]
[1746453924438,5.52234627,1810.9,1810.4,5.52354042]
[1746453924642,3.0,1810.8,1810.5,0.05523482]
[1746453924845,5.555,1811.2,1810.6,0.7751]
[1746453925000,11.07670132,1811.4,1810.9,5.52198292]
[1746453925201,3.0,1811.3,1810.9,5.52198292]
[1746453925420,11.49611806,1811.4,1810.9,5.52198292]
[1746453925732,11.07673696,1811.4,1810.9,5.52198292]
[1746453925936,5.556,1811.4,1811.0,0.7925]
[1746453926301,11.07678547,1811.4,1810.8,5.52236146]
[1746453926655,8.52092984,1811.3,1810.8,5.52221359]
[1746453926940,5.556,1811.4,1811.1,5.52126126]
[1746453927140,8.52029594,1811.5,1811.1,5.52126126]
[1746453927339,3.5681,1811.7,1811.1,5.5214885]
[1746453927544,0.5681,1811.7,1811.1,6.15389971]
[1746453927846,5.52068837,1811.4,1811.1,0.63255885]
[1746453928014,5.52151655,1811.1,1810.8,0.7846]
[1746453928208,5.52132392,1811.2,1810.8,0.7846]
[1746453928411,3.0,1811.2,1810.8,0.7846]
[1746453928610,8.52121929,1811.2,1810.8,6.30691513]
[1746453928817,3.0,1811.2,1810.9,5.52209611]
[1746453929028,3.0,1811.4,1811.0,5.52179436]
[1746453929217,18.08841104,1811.7,1811.2,5.52118889]
[1746453929423,18.08835701,1811.7,1811.1,5.52129903]
[1746453929618,8.52012591,1811.6,1811.1,5.52129903]
[1746453929823,3.0,1811.6,1811.2,5.52110632]
[1746453930312,8.52021307,1811.6,1811.2,1.10423959]
[1746453930541,8.52014735,1811.6,1811.0,6.33028233]
[1746453930726,5.52062182,1811.4,1811.0,0.8085]
[1746453930939,8.52046968,1811.5,1811.0,6.33010105]
[1746453931140,3.0,1811.5,1811.0,0.8085]
[1746453931347,8.82072742,1811.4,1811.0,0.8085]
[1746453931648,3.0,1811.4,1811.0,6.33016954]
[1746453931856,3.0,1811.4,1811.1,0.18097604]
[1746453932445,3.0,1811.4,1811.1,5.70238504]
[1746453932646,10.04869538,1811.7,1811.1,5.70238504]
[1746453932955,11.07425443,1811.9,1811.4,5.52056387]
[1746453933155,6.62689177,1811.8,1811.4,0.7588]
[1746453933455,12.06649114,1811.9,1811.5,0.21879332]
[1746453933657,11.49839114,1811.9,1811.5,0.21879332]
[1746453933853,5.51991671,1811.7,1811.5,0.21879332]
[1746453934061,8.51998233,1811.6,1811.5,0.21879332]
[1746453934449,8.51998233,1811.6,1811.1,0.7987]
[1746453934644,8.51998233,1811.6,1811.5,0.21779623]
[1746453934940,3.0,1811.6,1811.5,0.21779623]
[1746453935142,5.52037086,1811.5,1811.1,0.7987]
[1746453935547,0.51467357,1811.4,1811.1,0.7987]
[1746453935931,0.51467357,1811.3,1811.1,0.7987]
[1746453936326,0.51467357,1811.2,1811.1,0.7987]
[1746453936726,0.51467357,1811.2,1811.1,6.32020626]
[1746453937050,0.51467357,1811.2,1811.1,8.05988648]
[1746453937554,0.51467357,1811.4,1811.1,8.05988648]
[1746453937752,0.51467357,1811.4,1811.1,0.7987]
[1746453937957,0.51467357,1811.3,1811.1,0.7987]
[1746453938322,0.51467357,1811.3,1811.2,5.52120141]
[1746453938760,0.51467357,1811.6,1811.2,5.52120141]
[1746453939053,3.51467357,1811.5,1811.1,0.7987]
[1746453939375,3.51467357,1811.5,1811.1,6.32018208]
[1746453939568,3.51467357,1811.5,1811.1,6.32010829]
[1746453939740,0.51467357,1811.4,1811.1,11.84145032]
[1746453939933,0.51467357,1811.4,1811.1,11.84144426]
[1746453940244,3.0,1811.5,1811.2,5.52119202]
[1746453940245,0.51467357,1811.3,1811.2,5.52119202]
[1746453940442,0.51467357,1811.3,1811.1,0.7987]
[1746453940844,0.51467357,1811.2,1811.1,0.7987]
[1746453941049,0.51467357,1811.2,1810.9,0.7913]
[1746453941225,6.03615222,1811.2,1810.9,0.7913]
[1746453941425,3.0,1811.1,1810.7,0.8061]
[1746453941657,11.98021281,1811.0,1810.7,0.8061]
[1746453941856,0.51467357,1811.0,1810.7,0.8061]
[1746453942059,0.51467357,1810.9,1810.7,0.8061]
[1746453942459,0.51467357,1810.8,1810.7,6.32881165]
[1746453943043,5.52196299,1811.0,1810.7,0.8061]
[1746453943244,5.52196299,1811.0,1810.2,14.7421025]
[1746453943245,0.51656772,1810.8,1810.2,11.07799461]
[1746453943444,0.51656772,1810.8,1810.6,6.29947882]
[1746453943766,0.51656772,1810.7,1810.6,0.7765]
[1746453944129,0.51656772,1810.7,1810.6,6.29953103]
[1746453944529,0.51656772,1810.7,1810.6,6.35475602]
[1746453944871,0.51656772,1810.7,1810.6,7.48732335]